[Event "GAMMA Reykjavik Open 2019"]
[Site "Reykjavik"]
[Date "2019.04.09"]
[Round "2.26"]
[White "Petursson, Gudni"]
[Black "Prithu Gupta"]
[Result "0-1"]
[ECO "A21"]
[WhiteElo "2020"]
[BlackElo "2478"]
[Annotator "ChessBase"]
[PlyCount "88"]
[EventDate "2019.04.04"]
[EventType "swiss"]
[EventCountry "ISL"]
[SourceTitle "playchess.com"]
[Source "ChessBase"]
[SourceQuality "1"]
[TimeControl "40/5400+30:1800+30"]

1. c4 {[%emt 0:00:00]} e5 {[%emt 0:00:28]} 2. Nc3 {[%emt 0:00:39]} Bb4 {[%emt 0:00:09]} 3. Qc2 {[%emt 0:01:46]} Nf6 {[%emt 0:01:49]} 4. e3 {[%emt 0:01:59]} O-O {[%emt 0:01:06]} 5. Nf3 {[%emt 0:02:38]} Qe7 {[%emt 0:02:49]} 6. a3 {[%emt 0:00:55]} Bxc3 {[%emt 0:00:13]} 7. Qxc3 {[%emt 0:00:07]} e4 {[%emt 0:04:40]} 8. Nd4 {[%emt 0:00:50]} d5 {[%emt 0:03:47]} 9. b4 {[%emt 0:01:48]} Nbd7 {[%emt 0:02:28]} 10. Bb2 {[%emt 0:01:17]} Nb6 {[%emt 0:02:06]} 11. c5 {[%emt 0:07:10]} Na4 {[%emt 0:00:06]} 12. Qc2 {[%emt 0:00:09]} Nxb2 {[%emt 0:00:07]} 13. Qxb2 {[%emt 0:00:04]} c6 {[%emt 0:03:26]} 14. Be2 {[%emt 0:01:13]} Bg4 {[%emt 0:00:07]} 15. f3 {[%emt 0:05:09]} exf3 {[%emt 0:03:29]} 16. gxf3 {[%emt 0:00:39]} Bd7 {[%emt 0:04:16]} 17. O-O {[%emt 0:06:26]} a5 {[%emt 0:08:08]} 18. Qc3 {[%emt 0:03:14]} Bh3 {[%emt 0:04:17]} 19. Rf2 {[%emt 0:00:56]} Nh5 {[%emt 0:01:06]} 20. f4 {[%emt 0:00:27]} Nf6 {[%emt 0:00:56]} 21. Bf3 {[%emt 0:00:27]} axb4 {[%emt 0:02:38]} 22. axb4 {[%emt 0:00:08]} Ne4 {[%emt 0:00:29]} 23. Bxe4 {[%emt 0:00:20]} dxe4 {[%emt 0:06:31]} 24. Ne2 {[%emt 0:03:45]} Qd7 {[%emt 0:05:05]} 25. Ng3 {[%emt 0:00:42]} f5 {[%emt 0:03:41]} 26. Qc4+ {[%emt 0:06:08]} Qf7 {[%emt 0:01:54]} 27. Qxf7+ {[%emt 0:00:31]} Kxf7 {[%emt 0:00:02]} 28. Rb1 {[%emt 0:00:56]} Rfd8 {[%emt 0:01:19]} 29. d4 {[%emt 0:00:07]} exd3 {[%emt 0:00:59]} 30. Rd2 {[%emt 0:00:06]} Ra3 {[%emt 0:08:14]} 31. Kf2 {[%emt 0:00:21]} Rc3 {[%emt 0:01:16]} 32. Rbb2 {[%emt 0:00:44]} Ke7 {[%emt 0:04:59]} 33. e4 {[%emt 0:01:04]} Rc4 {[%emt 0:10:27]} 34. Ke3 {[%emt 0:00:30]} fxe4 {[%emt 0:00:33]} 35. Nxe4 {[%emt 0:00:08]} Bf5 {[%emt 0:00:04]} 36. Nd6 {[%emt 0:00:17]} Rxd6 {[%emt 0:00:07]} 37. cxd6+ {[%emt 0:00:08]} Kxd6 {[%emt 0:00:01]} 38. Rg2 {[%emt 0:01:56]} g6 {[%emt 0:00:00]} 39. h4 {[%emt 0:00:00]} h5 {[%emt 0:00:00]} 40. Rg1 {[%emt 0:00:00]} Re4+ {[%emt 0:00:00]} 41. Kf3 {[%emt 0:01:14]} Kd5 {[%emt 0:02:16]} 42. Rd2 {[%emt 0:00:19]} Kd4 {[%emt 0:00:29]} 43. Rc1 {[%emt 0:00:58]} Bg4+ {[%emt 0:00:57]} 44. Kg3 {[%emt 0:00:25]} Re2 {[%emt 0:01:05]} 0-1

[Event "GAMMA Reykjavik Open 2019"]
[Site "Reykjavik"]
[Date "2019.04.09"]
[Round "2.27"]
[White "Gupta, Abhijeet"]
[Black "Kristjansson, Atli Freyr"]
[Result "1-0"]
[ECO "E01"]
[WhiteElo "2602"]
[BlackElo "2198"]
[Annotator "ChessBase"]
[PlyCount "53"]
[EventDate "2019.04.04"]
[EventType "swiss"]
[EventCountry "ISL"]
[SourceTitle "playchess.com"]
[Source "ChessBase"]
[SourceQuality "1"]
[TimeControl "40/5400+30:1800+30"]

1. d4 {[%emt 0:00:00]} d5 {[%emt 0:00:00]} 2. c4 {[%emt 0:00:20]} e6 {[%emt 0:00:00]} 3. Nc3 {[%emt 0:00:04]} c6 {[%emt 0:00:00]} 4. Nf3 {[%emt 0:00:19]} Nf6 {[%emt 0:00:14]} 5. g3 {[%emt 0:00:31]} Nbd7 {[%emt 0:02:29]} 6. Bg2 {[%emt 0:00:06]} dxc4 {[%emt 0:00:11]} 7. O-O {[%emt 0:00:06]} Be7 {[%emt 0:00:19]} 8. e4 {[%emt 0:01:53]} e5 {[%emt 0:06:00]} 9. d5 {[%emt 0:12:30]} Qc7 {[%emt 0:01:18]} 10. a4 {[%emt 0:06:58]} O-O {[%emt 0:08:27]} 11. Qe2 {[%emt 0:02:14]} cxd5 {[%emt 0:15:05]} 12. exd5 {[%emt 0:00:00]} a6 {[%emt 0:01:13]} 13. Bg5 {[%emt 0:08:51]} h6 {[%emt 0:00:46]} 14. Bxf6 {[%emt 0:00:24]} Bxf6 {[%emt 0:00:31]} 15. Nd2 {[%emt 0:00:35]} Rb8 {[%emt 0:02:08]} 16. Nxc4 {[%emt 0:03:10]} Nb6 {[%emt 0:03:39]} 17. Ne3 {[%emt 0:01:06]} Nd7 {[%emt 0:04:36]} 18. Rfd1 {[%emt 0:02:06]} b5 {[%emt 0:03:45]} 19. axb5 {[%emt 0:00:38]} axb5 {[%emt 0:00:06]} 20. d6 {[%emt 0:00:11]} Qb6 {[%emt 0:01:20]} 21. Nf5 {[%emt 0:07:07]} Bb7 {[%emt 0:00:31]} 22. Nxh6+ {[%emt 0:01:31]} gxh6 {[%emt 0:01:22]} 23. Qg4+ {[%emt 0:00:05]} Bg7 {[%emt 0:01:04]} 24. Qxd7 {[%emt 0:00:07]} Rfd8 {[%emt 0:05:18]} 25. Qc7 {[%emt 0:00:27]} Bxg2 {[%emt 0:00:26]} 26. Kxg2 {[%emt 0:00:04]} Rb7 {[%emt 0:00:15]} 27. Nd5 {[%emt 0:01:33]} 1-0

[Event "GAMMA Reykjavik Open 2019"]
[Site "Reykjavik"]
[Date "2019.04.09"]
[Round "2.28"]
[White "Potkin, Vladimir"]
[Black "Ghazarian, Kirk"]
[Result "1-0"]
[ECO "B36"]
[WhiteElo "2597"]
[BlackElo "2209"]
[Annotator "ChessBase"]
[PlyCount "59"]
[EventDate "2019.04.04"]
[EventType "swiss"]
[EventCountry "ISL"]
[SourceTitle "playchess.com"]
[Source "ChessBase"]
[SourceQuality "1"]
[TimeControl "40/5400+30:1800+30"]

1. c4 {[%emt 0:00:00]} c5 {[%emt 0:00:21]} 2. Nf3 {[%emt 0:00:00]} g6 {[%emt 0:01:54]} 3. d4 {[%emt 0:00:13]} cxd4 {[%emt 0:00:41]} 4. Nxd4 {[%emt 0:00:06]} Nc6 {[%emt 0:00:34]} 5. e4 {[%emt 0:00:34]} Nf6 {[%emt 0:00:08]} 6. Nc3 {[%emt 0:00:08]} d6 {[%emt 0:00:12]} 7. Be2 {[%emt 0:00:49]} Nxd4 {[%emt 0:00:09]} 8. Qxd4 {[%emt 0:00:06]} Bg7 {[%emt 0:00:06]} 9. Be3 {[%emt 0:01:09]} O-O {[%emt 0:01:23]} 10. Qd2 {[%emt 0:00:06]} a5 {[%emt 0:00:14]} 11. f3 {[%emt 0:01:10]} a4 {[%emt 0:02:08]} 12. Rc1 {[%emt 0:00:36]} Qa5 {[%emt 0:04:39]} 13. Kf2 {[%emt 0:00:58]} Be6 {[%emt 0:04:41]} 14. Nd5 {[%emt 0:00:53]} Bxd5 {[%emt 0:07:12]} 15. Qxa5 {[%emt 0:01:29]} Rxa5 {[%emt 0:00:16]} 16. cxd5 {[%emt 0:00:10]} Ne8 {[%emt 0:07:52]} 17. Rc8 {[%emt 0:29:56]} b5 {[%emt 0:20:21]} 18. Rhc1 {[%emt 0:05:38]} f5 {[%emt 0:19:58]} 19. exf5 {[%emt 0:03:22]} gxf5 {[%emt 0:00:10]} 20. Bd2 {[%emt 0:06:39]} Ra7 {[%emt 0:02:55]} 21. Bxb5 {[%emt 0:02:41]} Nf6 {[%emt 0:00:36]} 22. Bd3 {[%emt 0:04:10]} Rxc8 {[%emt 0:03:04]} 23. Rxc8+ {[%emt 0:00:05]} Kf7 {[%emt 0:00:04]} 24. Bxf5 {[%emt 0:01:24]} Nxd5 {[%emt 0:00:17]} 25. Bxh7 {[%emt 0:00:35]} Bd4+ {[%emt 0:00:10]} 26. Ke2 {[%emt 0:00:26]} Nf6 {[%emt 0:00:15]} 27. Bc2 {[%emt 0:00:31]} Bxb2 {[%emt 0:00:32]} 28. g4 {[%emt 0:00:53]} Nd5 {[%emt 0:00:57]} 29. h4 {[%emt 0:03:10]} Be5 {[%emt 0:00:10]} 30. Rc4 {[%emt 0:02:26]} 1-0

[Event "GAMMA Reykjavik Open 2019"]
[Site "Reykjavik"]
[Date "2019.04.09"]
[Round "2.29"]
[White "Loiseau, Quentin"]
[Black "Kristjansson, Olafur"]
[Result "1-0"]
[ECO "E04"]
[WhiteElo "2461"]
[BlackElo "2078"]
[Annotator "ChessBase"]
[PlyCount "55"]
[EventDate "2019.04.04"]
[EventType "swiss"]
[EventCountry "ISL"]
[SourceTitle "playchess.com"]
[Source "ChessBase"]
[SourceQuality "1"]
[TimeControl "40/5400+30:1800+30"]

1. d4 {[%emt 0:01:45]} Nf6 {[%emt 0:00:00]} 2. c4 {[%emt 0:00:10]} e6 {[%emt 0:00:03]} 3. Nf3 {[%emt 0:00:34]} d5 {[%emt 0:01:39]} 4. g3 {[%emt 0:00:50]} dxc4 {[%emt 0:01:13]} 5. Bg2 {[%emt 0:00:20]} a6 {[%emt 0:01:35]} 6. O-O {[%emt 0:00:17]} Be7 {[%emt 0:00:43]} 7. Ne5 {[%emt 0:04:36]} O-O {[%emt 0:02:22]} 8. Nxc4 {[%emt 0:00:39]} Nc6 {[%emt 0:09:02]} 9. e3 {[%emt 0:01:09]} Bd7 {[%emt 0:00:32]} 10. Nc3 {[%emt 0:01:04]} Rb8 {[%emt 0:00:11]} 11. Ne5 {[%emt 0:06:20]} Be8 {[%emt 0:10:52]} 12. Nxc6 {[%emt 0:04:53]} Bxc6 {[%emt 0:00:08]} 13. Bxc6 {[%emt 0:01:42]} bxc6 {[%emt 0:00:08]} 14. Qe2 {[%emt 0:00:29]} Rb6 {[%emt 0:01:14]} 15. b3 {[%emt 0:09:40]} Bb4 {[%emt 0:15:29]} 16. Na4 {[%emt 0:02:34]} Rb5 {[%emt 0:04:14]} 17. Bb2 {[%emt 0:01:20]} Qd5 {[%emt 0:10:03]} 18. Rac1 {[%emt 0:04:50]} Rd8 {[%emt 0:00:35]} 19. Rc2 {[%emt 0:15:38]} Qe4 {[%emt 0:11:51]} 20. f3 {[%emt 0:01:21]} Qg6 {[%emt 0:00:13]} 21. Rxc6 {[%emt 0:02:01]} Rg5 {[%emt 0:02:37]} 22. Qc2 {[%emt 0:02:48]} Qh6 {[%emt 0:03:29]} 23. e4 {[%emt 0:02:56]} Nh5 {[%emt 0:02:34]} 24. Bc1 {[%emt 0:06:16]} Rxd4 {[%emt 0:04:43]} 25. Rxc7 {[%emt 0:02:38]} f6 {[%emt 0:08:54]} 26. Rc8+ {[%emt 0:02:01]} Kf7 {[%emt 0:00:18]} 27. Qc6 {[%emt 0:00:16]} f5 {[%emt 0:00:35]} 28. e5 {[%emt 0:07:04]} 1-0

[Event "GAMMA Reykjavik Open 2019"]
[Site "Reykjavik"]
[Date "2019.04.09"]
[Round "2.30"]
[White "Tomazini, Zan"]
[Black "Georghiou, Paul T"]
[Result "1-0"]
[ECO "C02"]
[WhiteElo "2390"]
[BlackElo "2241"]
[Annotator "NA"]
[PlyCount "81"]
[EventDate "2019.04.04"]
[EventType "swiss"]
[EventCountry "ISL"]
[SourceTitle "playchess.com"]
[Source "ChessBase"]
[SourceQuality "1"]
[TimeControl "40/5400+30:1800+30"]

1. e4 {[%emt 0:02:11]} e6 {[%emt 0:00:03]} 2. d4 {[%emt 0:00:15]} d5 {[%emt 0:00:06]} 3. e5 {[%emt 0:00:15]} c5 {[%emt 0:00:13]} 4. c3 {[%emt 0:00:04]} Nc6 {[%emt 0:00:19]} 5. Nf3 {[%emt 0:00:04]} Bd7 {[%emt 0:00:29]} 6. a3 {[%emt 0:02:34]} cxd4 {[%emt 0:00:05]} 7. cxd4 {[%emt 0:00:06]} Na5 {[%emt 0:00:11] C02: French: Advance Variation} (7... Nge7 8. Nc3 a6 9. Bd3 Rc8 10. O-O Ng6 11. Be3 Be7 12. Rc1 {½-½ (12) Borges Matos,J (2436)-Garcia Carey,O (2353) Santa Clara 2018}) 8. Bd3 {[%emt 0:16:09]} Ne7 {[%emt 0:02:37]} 9. O-O {[%emt 0:00:30]} Rc8 {[%emt 0:04:54]} 10. Nc3 {[%emt 0:09:09]} a6 {[%emt 0:05:36]} 11. Ne2 $146 {[%emt 0:07:40]} ({Predecessor:} 11. Bd2 Nc4 12. Bxc4 Rxc4 13. Rc1 Nc6 14. b4 Be7 {½-½ (14) Bridges,P (1821)-Lawrence,D (1678) Fishguard 2016}) 11... Qb6 {[%emt 0:00:58]} 12. b4 {[%emt 0:01:23]} Nc4 {[%emt 0:00:19]} 13. Ng3 {[%emt 0:01:24]} a5 {[%emt 0:04:51]} 14. Rb1 {[%emt 0:01:15]} a4 {[%emt 0:02:17]} 15. Nh5 {[%emt 0:01:41]} Nf5 {[%emt 0:03:52]} 16. Bxf5 {[%emt 0:00:52]} exf5 {[%emt 0:02:58]} 17. Nf4 {[%emt 0:00:07]} Be6 {[%emt 0:00:40]} 18. Qxa4+ {[%emt 0:00:18]} Qc6 {[%emt 0:02:50]} 19. b5 {[%emt 0:02:55]} Qb6 {[%emt 0:00:43]} 20. Qb3 {[%emt 0:03:00]} Be7 {[%emt 0:04:13]} 21. Rd1 {[%emt 0:02:09]} O-O {[%emt 0:00:56]} 22. Nh5 {[%emt 0:03:31]} f6 {[%emt 0:03:03]} (22... h6 $14) 23. exf6 {[%emt 0:00:44]} Bxf6 {[%emt 0:03:06]} 24. Nxf6+ {[%emt 0:00:27]} Rxf6 {[%emt 0:00:02]} 25. Bf4 {[%emt 0:00:33]} h6 {[%emt 0:01:12]} 26. Be5 {[%emt 0:00:51]} Rff8 {[%emt 0:00:17]} 27. Qb4 {[%emt 0:06:24]} Kf7 {[%emt 0:01:56]} (27... f4 $14) 28. Re1 {[%emt 0:02:41]} Ra8 {[%emt 0:02:49]} 29. a4 {[%emt 0:00:17]} Rfc8 {[%emt 0:01:09]} 30. Ra1 {[%emt 0:00:58]} Ra5 {[%emt 0:00:17]} (30... Re8 $16 31. Bf4 Qd8) 31. h4 {[%emt 0:01:05]} Rca8 {[%emt 0:00:54]} 32. h5 {[%emt 0:01:07]} Re8 $18 {[%emt 0:10:27]} 33. Nd2 {[%emt 0:02:36]} Nxd2 {[%emt 0:01:57]} 34. Qxd2 {[%emt 0:00:05]} Bd7 {[%emt 0:05:28]} 35. Ra3 {[%emt 0:06:52]} Raa8 {[%emt 0:00:34]} 36. Rg3 {[%emt 0:02:12]} Rg8 {[%emt 0:01:32]} 37. Bxg7 {[%emt 0:01:32]} Rxg7 {[%emt 0:01:13]} 38. Rxg7+ {[%emt 0:00:06]} Kxg7 {[%emt 0:00:48]} 39. Re7+ {[%emt 0:00:14]} Kf8 {[%emt 0:01:09]} 40. Rxd7 {[%emt 0:00:00]} Rxa4 {[%emt 0:00:00]} 41. Qc2 {[%emt 0:01:48]} 1-0

[Event "GAMMA Reykjavik Open 2019"]
[Site "Reykjavik"]
[Date "2019.04.09"]
[Round "2.31"]
[White "Sowray, Peter J"]
[Black "Bentel, Robin"]
[Result "0-1"]
[ECO "E83"]
[WhiteElo "2356"]
[BlackElo "2130"]
[Annotator "NA"]
[PlyCount "86"]
[EventDate "2019.04.04"]
[EventType "swiss"]
[EventCountry "ISL"]
[SourceTitle "playchess.com"]
[Source "ChessBase"]
[SourceQuality "1"]
[TimeControl "40/5400+30:1800+30"]

1. d4 {[%emt 0:00:00]} Nf6 {[%emt 0:00:00]} 2. c4 {[%emt 0:00:00]} g6 {[%emt 0:00:08]} 3. Nc3 {[%emt 0:00:00]} Bg7 {[%emt 0:00:15]} 4. e4 {[%emt 0:00:09]} d6 {[%emt 0:00:16]} 5. f3 {[%emt 0:00:07]} O-O {[%emt 0:00:12]} 6. Be3 {[%emt 0:00:06]} c5 {[%emt 0:01:04]} 7. Nge2 {[%emt 0:00:16]} Nc6 {[%emt 0:00:16]} 8. d5 {[%emt 0:00:14]} Na5 {[%emt 0:02:19]} 9. Ng3 {[%emt 0:01:41]} a6 {[%emt 0:05:13]} 10. Rc1 {[%emt 0:01:29] E83: King's Indian: Sämisch Panno (6...Nc6): Lines without either Nge2 or Qd2} e6 {[%emt 0:01:21]} 11. Be2 {[%emt 0:05:36]} exd5 {[%emt 0:01:26]} 12. cxd5 {[%emt 0:01:14]} b5 {[%emt 0:02:30]} 13. b3 {[%emt 0:01:01]} Re8 {[%emt 0:17:22]} 14. Qd2 {[%emt 0:04:12] [#]} Nd7 $146 {[%emt 0:05:11]} ({Predecessor:} 14... Bd7 15. O-O b4 {1-0 (47) Baldauf,M (2483)-Van Wely,L (2663) Germany 2017}) 15. Nd1 {[%emt 0:08:04]} Ne5 {[%emt 0:06:26]} 16. O-O {[%emt 0:05:33]} h5 {[%emt 0:19:23]} 17. f4 {[%emt 0:10:23]} Ng4 {[%emt 0:01:50]} 18. Bxg4 {[%emt 0:00:09]} Bxg4 {[%emt 0:01:05]} 19. e5 {[%emt 0:04:38]} (19. Nf2 $16) 19... dxe5 {[%emt 0:09:55]} 20. f5 {[%emt 0:01:22]} c4 $1 {[%emt 0:04:29]} 21. b4 {[%emt 0:06:55]} Nb7 {[%emt 0:02:42]} 22. fxg6 {[%emt 0:09:14]} fxg6 {[%emt 0:00:20]} 23. Qc2 {[%emt 0:00:15]} e4 {[%emt 0:06:25]} 24. Nc3 {[%emt 0:05:55]} Nd6 {[%emt 0:00:42]} 25. Bc5 {[%emt 0:02:03]} Rc8 {[%emt 0:06:16]} 26. h3 {[%emt 0:03:10]} Be5 {[%emt 0:02:07] [#]} 27. Bxd6 $1 {[%emt 0:09:36]} Qxd6 {[%emt 0:00:39]} 28. Ncxe4 {[%emt 0:00:56]} Qb6+ {[%emt 0:01:08] [#]} (28... Qxd5 $16 29. hxg4 Qd4+ 30. Rf2 Bxg3 31. Nxg3 {[%mdl 64] Discovered Attack} Qxg4) 29. Kh1 $1 {[%emt 0:00:14]} Kg7 {[%emt 0:00:12]} 30. Qd2 {[%emt 0:05:36]} Bxg3 {[%emt 0:01:27]} 31. Nxg3 {[%emt 0:00:33]} Qe3 {[%emt 0:00:21]} 32. Qf2 {[%emt 0:04:35]} Qxf2 {[%emt 0:00:10]} 33. Rxf2 {[%emt 0:00:03]} h4 {[%emt 0:01:15]} 34. Nf1 {[%emt 0:02:24]} Bf5 {[%emt 0:00:14]} 35. Rf4 {[%emt 0:01:38]} Re2 {[%emt 0:01:00]} 36. Rc3 {[%emt 0:02:23]} Re1 {[%emt 0:01:39]} 37. Kh2 {[%emt 0:01:20]} Bd3 {[%emt 0:00:12]} 38. Nd2 {[%emt 0:00:18]} Re2 {[%emt 0:00:43]} 39. Nf3 {[%emt 0:01:02]} Rxa2 {[%emt 0:00:06]} 40. Nd4 {[%emt 0:00:00]} g5 {[%emt 0:00:00]} 41. Rg4 {[%emt 0:06:26]} Kf6 {[%emt 0:03:18]} 42. Nc6 {[%emt 0:00:24]} Ra1 {[%emt 0:07:22]} 43. Rd4 $19 {[%emt 0:01:09]} Re8 {[%emt 0:02:06]} 0-1

[Event "GAMMA Reykjavik Open 2019"]
[Site "Reykjavik"]
[Date "2019.04.09"]
[Round "3.18"]
[White "Bentel, Robin"]
[Black "Stefansson, Hannes"]
[Result "0-1"]
[ECO "D06"]
[WhiteElo "2130"]
[BlackElo "2558"]
[Annotator "ChessBase"]
[PlyCount "104"]
[EventDate "2019.04.04"]
[EventType "swiss"]
[EventCountry "ISL"]
[SourceTitle "playchess.com"]
[Source "ChessBase"]
[SourceQuality "1"]
[TimeControl "40/5400+30:1800+30"]

1. d4 {[%emt 0:00:00]} d5 {[%emt 0:00:34]} 2. c4 {[%emt 0:00:00]} Nc6 {[%emt 0:00:05]} 3. Nc3 {[%emt 0:03:33]} Nf6 {[%emt 0:00:31]} 4. Nf3 {[%emt 0:01:56]} dxc4 {[%emt 0:00:19]} 5. Bg5 {[%emt 0:03:43]} Bg4 {[%emt 0:11:17]} 6. e3 {[%emt 0:10:46]} e6 {[%emt 0:14:26]} 7. Bxc4 {[%emt 0:00:50]} Be7 {[%emt 0:00:23]} 8. O-O {[%emt 0:01:22]} O-O {[%emt 0:00:19]} 9. h3 {[%emt 0:04:32]} Bh5 {[%emt 0:01:10]} 10. Rc1 {[%emt 0:07:02]} Nd5 {[%emt 0:25:40]} 11. Bxe7 {[%emt 0:02:58]} Ncxe7 {[%emt 0:01:19]} 12. Be2 {[%emt 0:02:28]} c6 {[%emt 0:04:55]} 13. a3 {[%emt 0:04:36]} Bxf3 {[%emt 0:06:53]} 14. Bxf3 {[%emt 0:00:14]} Nf5 {[%emt 0:00:31]} 15. Qb3 {[%emt 0:04:55]} Rb8 {[%emt 0:04:12]} 16. Ne2 {[%emt 0:09:54]} Nh4 {[%emt 0:05:12]} 17. Be4 {[%emt 0:08:39]} f5 {[%emt 0:03:24]} 18. Bxd5 {[%emt 0:02:49]} exd5 {[%emt 0:00:10]} 19. Nf4 {[%emt 0:00:42]} Qe8 {[%emt 0:06:44]} 20. Qd1 {[%emt 0:05:20]} g5 {[%emt 0:02:51]} 21. Qh5 {[%emt 0:01:56]} Qxh5 {[%emt 0:02:18]} 22. Nxh5 {[%emt 0:00:02]} Kf7 {[%emt 0:00:53]} 23. f4 {[%emt 0:02:39]} Kg6 {[%emt 0:01:48]} 24. Ng3 {[%emt 0:00:29]} Rbe8 {[%emt 0:01:04]} 25. Rc3 {[%emt 0:00:51]} h6 {[%emt 0:01:31]} 26. Ne2 {[%emt 0:02:12]} Kh7 {[%emt 0:01:14]} 27. g3 {[%emt 0:04:15]} Ng6 {[%emt 0:00:05]} 28. Kf2 {[%emt 0:00:12]} Nh8 {[%emt 0:01:43]} 29. Rb3 {[%emt 0:05:15]} Re7 {[%emt 0:01:24]} 30. fxg5 {[%emt 0:02:30]} hxg5 {[%emt 0:00:14]} 31. Kg2 {[%emt 0:00:17]} Ng6 {[%emt 0:01:16]} 32. Ng1 {[%emt 0:02:49]} Kh6 {[%emt 0:00:57]} 33. Rd3 {[%emt 0:01:04]} f4 {[%emt 0:00:29]} 34. Ne2 {[%emt 0:03:15]} Rfe8 {[%emt 0:00:34]} 35. gxf4 {[%emt 0:00:20]} Rxe3 {[%emt 0:00:20]} 36. Rxe3 {[%emt 0:01:48]} Rxe3 {[%emt 0:00:02]} 37. fxg5+ {[%emt 0:00:21]} Kxg5 {[%emt 0:00:09]} 38. Kf2 {[%emt 0:00:27]} Rb3 {[%emt 0:00:32]} 39. Rg1+ {[%emt 0:01:42]} Kf6 {[%emt 0:00:41]} 40. Rb1 {[%emt 0:00:00]} Rxh3 {[%emt 0:00:00]} 41. Ng3 {[%emt 0:07:26]} Nh4 {[%emt 0:07:58]} 42. b4 {[%emt 0:03:34]} Nf5 {[%emt 0:03:38]} 43. Nxf5 {[%emt 0:00:22]} Kxf5 {[%emt 0:00:02]} 44. b5 {[%emt 0:00:09]} Ke4 {[%emt 0:06:03]} 45. bxc6 {[%emt 0:00:32]} bxc6 {[%emt 0:00:08]} 46. Rc1 {[%emt 0:00:15]} Rh6 {[%emt 0:01:52]} 47. Rd1 {[%emt 0:00:33]} Rh2+ {[%emt 0:00:20]} 48. Kg3 {[%emt 0:00:29]} Ra2 {[%emt 0:00:11]} 49. Rc1 {[%emt 0:00:04]} Rxa3+ {[%emt 0:00:09]} 50. Kf2 {[%emt 0:00:05]} Ra6 {[%emt 0:00:49]} 51. Rd1 {[%emt 0:00:05]} Ra4 {[%emt 0:00:49]} 52. Rc1 {[%emt 0:00:07]} Rc4 {[%emt 0:00:10]} 0-1

[Event "GAMMA Reykjavik Open 2019"]
[Site "Reykjavik"]
[Date "2019.04.09"]
[Round "3.31"]
[White "Vaishali R"]
[Black "Maxion, Dirk"]
[Result "1-0"]
[ECO "A45"]
[WhiteElo "2353"]
[BlackElo "2110"]
[Annotator "RC"]
[PlyCount "109"]
[EventDate "2019.04.04"]
[EventType "swiss"]
[EventCountry "ISL"]
[SourceTitle "playchess.com"]
[Source "ChessBase"]
[SourceQuality "1"]
[TimeControl "40/5400+30:1800+30"]

1. d4 {[%emt 0:00:43]} Nf6 {[%emt 0:00:43]} 2. Bg5 {[%emt 0:00:12]} Ne4 {[%emt 0:00:51]} 3. h4 {[%emt 0:00:21]} c5 {[%emt 0:01:16]} 4. dxc5 {[%emt 0:00:41]} Qa5+ {[%emt 0:04:18]} 5. Nd2 {[%emt 0:00:19]} Nxg5 {[%emt 0:01:25]} 6. hxg5 {[%emt 0:00:03]} Qxc5 {[%emt 0:00:16]} 7. Ngf3 {[%emt 0:00:13]} g6 {[%emt 0:01:40]} 8. e3 {[%emt 0:08:32]} Bg7 {[%emt 0:00:09]} 9. c3 {[%emt 0:02:57]} d6 {[%emt 0:02:12]} 10. Ne4 {[%emt 0:07:14]} Qb6 {[%emt 0:01:35]} 11. Qb3 {[%emt 0:02:04]} Qxb3 {[%emt 0:03:53]} 12. axb3 {[%emt 0:00:03]} Nc6 {[%emt 0:09:58]} 13. Bc4 {[%emt 0:04:10]} Bf5 {[%emt 0:04:13]} 14. Ng3 {[%emt 0:02:53]} Bd7 {[%emt 0:01:13]} 15. b4 {[%emt 0:09:08]} O-O {[%emt 0:10:40]} 16. Kd2 {[%emt 0:05:10]} Rfc8 {[%emt 0:01:33]} 17. Rh4 {[%emt 0:04:57]} a5 {[%emt 0:06:54]} 18. b5 {[%emt 0:03:44]} Ne5 {[%emt 0:00:44]} 19. Bd5 {[%emt 0:14:29]} Rc5 {[%emt 0:01:34]} 20. c4 {[%emt 0:11:25]} Nxf3+ {[%emt 0:20:46]} 21. Bxf3 {[%emt 0:04:07]} Rxg5 {[%emt 0:05:09]} 22. Bxb7 {[%emt 0:02:19]} Rb8 {[%emt 0:00:49]} 23. Ba6 {[%emt 0:03:12]} d5 {[%emt 0:04:22]} 24. Rxa5 {[%emt 0:03:38]} dxc4 {[%emt 0:01:00]} 25. Rxc4 {[%emt 0:00:53]} Bxb2 {[%emt 0:01:52]} 26. Rb4 {[%emt 0:08:09]} Rd5+ {[%emt 0:03:45]} 27. Kc2 {[%emt 0:00:35]} Be5 {[%emt 0:01:12]} 28. Ne4 {[%emt 0:00:54]} f5 {[%emt 0:04:00]} 29. Nd2 {[%emt 0:00:49]} Be6 {[%emt 0:01:17]} 30. Raa4 {[%emt 0:00:31]} Rc5+ {[%emt 0:02:57]} 31. Nc4 {[%emt 0:00:21]} Bf6 {[%emt 0:00:59]} 32. b6 {[%emt 0:00:25]} Bd7 {[%emt 0:00:23]} 33. Ra5 {[%emt 0:00:34]} Rc6 {[%emt 0:01:19]} 34. b7 {[%emt 0:00:40]} Be6 {[%emt 0:00:04]} 35. Kd3 {[%emt 0:00:29]} Kg7 {[%emt 0:00:12]} 36. Ra3 {[%emt 0:00:30]} Bd5 {[%emt 0:00:33]} 37. f3 {[%emt 0:00:25]} e5 {[%emt 0:00:13]} 38. e4 {[%emt 0:00:20]} fxe4+ {[%emt 0:00:10]} 39. fxe4 {[%emt 0:00:03]} Be6 {[%emt 0:00:33]} 40. Ra1 {[%emt 0:00:00]} Be7 {[%emt 0:00:00]} 41. Rb2 {[%emt 0:05:00]} Bc5 {[%emt 0:03:10]} 42. Ra5 {[%emt 0:06:36]} Bd4 {[%emt 0:13:28]} 43. Rc2 {[%emt 0:01:36]} Rd8 {[%emt 0:01:47]} 44. Ke2 {[%emt 0:08:21]} Bg4+ {[%emt 0:01:00]} 45. Ke1 {[%emt 0:00:02]} Rf6 {[%emt 0:02:56]} 46. Rd5 {[%emt 0:01:34]} Rdf8 {[%emt 0:02:24]} 47. Nd6 {[%emt 0:04:11]} Bf2+ {[%emt 0:04:43]} 48. Kd2 {[%emt 0:00:29]} Ba7 {[%emt 0:00:11]} 49. Bb5 {[%emt 0:01:34]} Rf2+ {[%emt 0:02:26]} 50. Kc1 {[%emt 0:00:22]} Be3+ {[%emt 0:03:41]} 51. Kb2 {[%emt 0:01:30]} Be6 {[%emt 0:00:32]} 52. Ne8+ {[%emt 0:02:20]} Rxe8 {[%emt 0:01:22]} 53. Bxe8 {[%emt 0:00:08]} Bxd5 {[%emt 0:00:10]} 54. Rxf2 {[%emt 0:00:42]} Bd4+ {[%emt 0:00:11]} 55. Ka3 {[%emt 0:00:56]} 1-0